[Event "Titled Tuesday Blitz May 23 Late 2023"]
[White "gueraumasague"]
[Black "Rodriguez, Santiago"]
[BlackFideId "3000591"]
[WhiteElo "2551"]
[BlackElo "2249"]
[Result "0-1"]
[Round "10"]
[TimeControl "180+2"]
[Date "2023.05.23"]
[WhiteClock "0:00:00"]
[BlackClock "0:00:14"]

1. e4 {[%clk 0:03:00]}  c5 {[%clk 0:02:58]} 2. Nc3 {[%clk 0:03:01]}  Nc6 {[%clk 0:02:56]} 3. Bb5 {[%clk 0:03:01]}  Nd4 {[%clk 0:02:55]} 4. Nf3 {[%clk 0:03:02]}  Nxb5 {[%clk 0:02:52]} 5. Nxb5 {[%clk 0:03:01]}  d6 {[%clk 0:02:53]} 6. O-O {[%clk 0:03:00]}  a6 {[%clk 0:02:52]} 7. Nc3 {[%clk 0:02:59]}  Nf6 {[%clk 0:02:51]} 8. d4 {[%clk 0:02:53]}  cxd4 {[%clk 0:02:51]} 9. Nxd4 {[%clk 0:02:53]}  e5 {[%clk 0:02:50]} 10. Nb3 {[%clk 0:02:51]}  h6 {[%clk 0:02:48]} 11. h3 {[%clk 0:02:49]}  Be6 {[%clk 0:02:48]} 12. Be3 {[%clk 0:02:48]}  Be7 {[%clk 0:02:48]} 13. Qd3 {[%clk 0:02:46]}  O-O {[%clk 0:02:47]} 14. Rfd1 {[%clk 0:02:43]}  Rc8 {[%clk 0:02:47]} 15. a4 {[%clk 0:02:43]}  Qc7 {[%clk 0:02:41]} 16. a5 {[%clk 0:02:42]}  Qc4 {[%clk 0:02:39]} 17. Ra4 {[%clk 0:02:28]}  Qxd3 {[%clk 0:02:35]} 18. Rxd3 {[%clk 0:02:29]}  Rc6 {[%clk 0:02:23]} 19. Rb4 {[%clk 0:02:21]}  Rc7 {[%clk 0:02:14]} 20. Ra4 {[%clk 0:01:49]}  Rfc8 {[%clk 0:02:08]} 21. Nd2 {[%clk 0:01:43]}  Kf8 {[%clk 0:01:48]} 22. f4 {[%clk 0:01:36]}  exf4 {[%clk 0:01:34]} 23. Bxf4 {[%clk 0:01:36]}  Rc6 {[%clk 0:01:17]} 24. Rad4 {[%clk 0:01:33]}  Rc5 {[%clk 0:01:06]} 25. Bxd6 {[%clk 0:01:25]}  Bxd6 {[%clk 0:01:05]} 26. Rxd6 {[%clk 0:01:26]}  Rxa5 {[%clk 0:01:05]} 27. Rd8+ {[%clk 0:01:23]}  Rxd8 {[%clk 0:01:04]} 28. Rxd8+ {[%clk 0:01:23]}  Ke7 {[%clk 0:01:05]} 29. Rb8 {[%clk 0:01:24]}  b5 {[%clk 0:01:03]} 30. e5 {[%clk 0:01:18]}  Nd7 {[%clk 0:01:01]} 31. Rb7 {[%clk 0:01:15]}  Ra1+ {[%clk 0:01:00]} 32. Kf2 {[%clk 0:01:14]}  Rc1 {[%clk 0:01:00]} 33. Nce4 {[%clk 0:00:56]}  Rxc2 {[%clk 0:00:57]} 34. b4 {[%clk 0:00:56]}  Bd5 {[%clk 0:00:41]} 35. Ra7 {[%clk 0:00:32]}  Bxe4 {[%clk 0:00:40]} 36. Ke3 {[%clk 0:00:31]}  Bxg2 {[%clk 0:00:37]} 37. h4 {[%clk 0:00:31]}  Rc6 {[%clk 0:00:32]} 38. Nb3 {[%clk 0:00:29]}  Bd5 {[%clk 0:00:31]} 39. Nc5 {[%clk 0:00:29]}  Be6 {[%clk 0:00:30]} 40. Nxa6 {[%clk 0:00:29]}  Kd8 {[%clk 0:00:23]} 41. Ra8+ {[%clk 0:00:20]}  Ke7 {[%clk 0:00:23]} 42. Ra7 {[%clk 0:00:19]}  Kd8 {[%clk 0:00:22]} 43. Ra8+ {[%clk 0:00:19]}  Rc8 {[%clk 0:00:23]} 44. Ra7 {[%clk 0:00:15]}  Nxe5 {[%clk 0:00:22]} 45. Nc5 {[%clk 0:00:15]}  Nd7 {[%clk 0:00:22]} 46. Ne4 {[%clk 0:00:15]}  Rc4 {[%clk 0:00:20]} 47. Nd6 {[%clk 0:00:09]}  Rxb4 {[%clk 0:00:20]} 48. Ra8+ {[%clk 0:00:09]}  Kc7 {[%clk 0:00:20]} 49. Ne8+ {[%clk 0:00:09]}  Kb7 {[%clk 0:00:20]} 50. Ra1 {[%clk 0:00:09]}  Rxh4 {[%clk 0:00:20]} 51. Nxg7 {[%clk 0:00:09]}  Nf6 {[%clk 0:00:19]} 52. Rf1 {[%clk 0:00:08]}  Nd5+ {[%clk 0:00:18]} 53. Kd2 {[%clk 0:00:08]}  Rh3 {[%clk 0:00:18]} 54. Ne8 {[%clk 0:00:06]}  b4 {[%clk 0:00:17]} 55. Rb1 {[%clk 0:00:05]}  Rh2+ {[%clk 0:00:16]} 56. Kd3 {[%clk 0:00:05]}  Kc6 {[%clk 0:00:16]} 57. Kd4 {[%clk 0:00:05]}  Rh4+ {[%clk 0:00:16]} 58. Ke5 {[%clk 0:00:05]}  Rh5+ {[%clk 0:00:15]} 59. Kd4 {[%clk 0:00:04]}  Rh4+ {[%clk 0:00:15]} 60. Ke5 {[%clk 0:00:05]}  Rh3 {[%clk 0:00:15]} 61. Ng7 {[%clk 0:00:04]}  Re3+ {[%clk 0:00:15]} 62. Kd4 {[%clk 0:00:04]}  Rh3 {[%clk 0:00:14]} 63. Rb2 {[%clk 0:00:03]}  b3 {[%clk 0:00:15]} 64. Rd2 {[%clk 0:00:00]}  Kb5 {[%clk 0:00:14]} 0-1


[Site "https://www.chess.com"]

[Event "Titled Tuesday Blitz May 23 Late 2023"]
[White "Erzhanov, Arman"]
[Black "Buchenau, Frank"]
[WhiteFideId "4138821"]
[BlackFideId "4604350"]
[WhiteElo "2138"]
[BlackElo "2157"]
[Result "1-0"]
[Round "10"]
[TimeControl "180+2"]
[Date "2023.05.23"]
[WhiteClock "0:01:06"]
[BlackClock "0:00:15"]

1. e4 {[%clk 0:03:00]}  e6 {[%clk 0:02:59]} 2. b3 {[%clk 0:03:00]}  c5 {[%clk 0:02:58]} 3. Nf3 {[%clk 0:03:00]}  Nc6 {[%clk 0:02:57]} 4. Bb5 {[%clk 0:02:59]}  Nge7 {[%clk 0:02:54]} 5. Bb2 {[%clk 0:03:00]}  a6 {[%clk 0:02:54]} 6. Bxc6 {[%clk 0:03:00]}  Nxc6 {[%clk 0:02:54]} 7. O-O {[%clk 0:03:01]}  f6 {[%clk 0:02:45]} 8. Nh4 {[%clk 0:03:01]}  g6 {[%clk 0:02:38]} 9. f4 {[%clk 0:03:01]}  Bg7 {[%clk 0:02:35]} 10. f5 {[%clk 0:03:00]}  Ne7 {[%clk 0:02:15]} 11. fxg6 {[%clk 0:02:17]}  hxg6 {[%clk 0:02:11]} 12. Qg4 {[%clk 0:02:11]}  g5 {[%clk 0:02:04]} 13. Bxf6 {[%clk 0:01:45]}  Bxf6 {[%clk 0:01:48]} 14. Rxf6 {[%clk 0:01:46]}  Ng8 {[%clk 0:01:01]} 15. Rg6 {[%clk 0:01:28]}  Rxh4 {[%clk 0:00:22]} 16. Rxg8+ {[%clk 0:01:24]}  Kf7 {[%clk 0:00:22]} 17. Rxd8 {[%clk 0:01:16]}  Rxg4 {[%clk 0:00:22]} 18. Nc3 {[%clk 0:01:15]}  b6 {[%clk 0:00:20]} 19. Rf1+ {[%clk 0:01:15]}  Ke7 {[%clk 0:00:20]} 20. Rff8 {[%clk 0:01:15]}  Rf4 {[%clk 0:00:18]} 21. Rg8 {[%clk 0:01:07]}  Kd6 {[%clk 0:00:15]} 22. Rxc8 {[%clk 0:01:06]} 1-0


[Site "https://www.chess.com"]

[Event "Titled Tuesday Blitz May 23 Late 2023"]
[White "reevecanada"]
[Black "Guerra Tulcan, Lenin"]
[BlackFideId "3601382"]
[WhiteElo "2439"]
[BlackElo "2368"]
[Result "1-0"]
[Round "10"]
[TimeControl "180+2"]
[Date "2023.05.23"]
[WhiteClock "0:01:30"]
[BlackClock "0:00:17"]

1. e4 {[%clk 0:03:00]}  c5 {[%clk 0:02:59]} 2. Nf3 {[%clk 0:02:58]}  e6 {[%clk 0:02:59]} 3. b3 {[%clk 0:02:56]}  b6 {[%clk 0:02:58]} 4. d4 {[%clk 0:02:53]}  cxd4 {[%clk 0:02:58]} 5. Nxd4 {[%clk 0:02:54]}  Bb7 {[%clk 0:02:57]} 6. Nd2 {[%clk 0:02:54]}  a6 {[%clk 0:02:57]} 7. Bb2 {[%clk 0:02:53]}  Nf6 {[%clk 0:02:55]} 8. Bd3 {[%clk 0:02:52]}  d6 {[%clk 0:02:53]} 9. O-O {[%clk 0:02:51]}  Be7 {[%clk 0:02:53]} 10. Qe2 {[%clk 0:02:49]}  Nbd7 {[%clk 0:02:53]} 11. Kh1 {[%clk 0:02:49]}  Nc5 {[%clk 0:02:44]} 12. f4 {[%clk 0:02:46]}  Nxd3 {[%clk 0:02:43]} 13. Qxd3 {[%clk 0:02:40]}  d5 {[%clk 0:02:35]} 14. e5 {[%clk 0:02:38]}  Ne4 {[%clk 0:02:35]} 15. Nxe4 {[%clk 0:02:37]}  dxe4 {[%clk 0:02:36]} 16. Qg3 {[%clk 0:02:36]}  O-O {[%clk 0:02:35]} 17. f5 {[%clk 0:02:34]}  Bh4 {[%clk 0:02:09]} 18. Qh3 {[%clk 0:02:29]}  exf5 {[%clk 0:01:00]} 19. Nxf5 {[%clk 0:02:26]}  Bg5 {[%clk 0:01:00]} 20. e6 {[%clk 0:02:26]}  fxe6 {[%clk 0:00:48]} 21. Nxg7 {[%clk 0:01:57]}  Rxf1+ {[%clk 0:00:49]} 22. Rxf1 {[%clk 0:01:56]}  Qe7 {[%clk 0:00:49]} 23. Nxe6 {[%clk 0:01:40]}  Bc8 {[%clk 0:00:46]} 24. Qg3 {[%clk 0:01:38]}  Bxe6 {[%clk 0:00:44]} 25. Qe5 {[%clk 0:01:34]}  Bf6 {[%clk 0:00:30]} 26. Rxf6 {[%clk 0:01:30]}  Rf8 {[%clk 0:00:27]} 27. Qg5+ {[%clk 0:01:28]}  Qg7 {[%clk 0:00:20]} 28. Rxf8+ {[%clk 0:01:29]}  Kxf8 {[%clk 0:00:17]} 29. Qxg7+ {[%clk 0:01:30]} 1-0


[Site "https://www.chess.com"]

[Event "Titled Tuesday Blitz May 23 Late 2023"]
[White "Mazurkiewicz, Michal"]
[Black "Kisic, Bozidar"]
[WhiteFideId "1124943"]
[BlackFideId "16500350"]
[WhiteElo "2054"]
[BlackElo "2234"]
[Result "1-0"]
[Round "10"]
[TimeControl "180+2"]
[Date "2023.05.23"]
[WhiteClock "0:00:11"]
[BlackClock "0:00:13"]

1. e4 {[%clk 0:02:59]}  g6 {[%clk 0:02:59]} 2. d4 {[%clk 0:02:59]}  Bg7 {[%clk 0:02:59]} 3. Nc3 {[%clk 0:02:59]}  d6 {[%clk 0:02:59]} 4. f4 {[%clk 0:03:00]}  a6 {[%clk 0:03:00]} 5. Nf3 {[%clk 0:02:58]}  Nd7 {[%clk 0:03:00]} 6. a4 {[%clk 0:02:55]}  c5 {[%clk 0:02:59]} 7. Be3 {[%clk 0:02:55]}  Qa5 {[%clk 0:02:56]} 8. e5 {[%clk 0:02:52]}  Nh6 {[%clk 0:02:54]} 9. dxc5 {[%clk 0:01:54]}  dxe5 {[%clk 0:02:52]} 10. fxe5 {[%clk 0:01:51]}  Ng4 {[%clk 0:02:46]} 11. Bd4 {[%clk 0:01:50]}  Ngxe5 {[%clk 0:02:34]} 12. Nxe5 {[%clk 0:01:47]}  Bxe5 {[%clk 0:02:24]} 13. Bxe5 {[%clk 0:01:42]}  Nxe5 {[%clk 0:02:22]} 14. Qd4 {[%clk 0:01:39]}  f6 {[%clk 0:02:19]} 15. b4 {[%clk 0:01:36]}  Qc7 {[%clk 0:02:16]} 16. Nd5 {[%clk 0:01:35]}  Qd8 {[%clk 0:02:15]} 17. O-O-O {[%clk 0:01:33]}  Bg4 {[%clk 0:01:59]} 18. Rd2 {[%clk 0:01:17]}  Be6 {[%clk 0:01:41]} 19. Be2 {[%clk 0:00:46]}  Qxd5 {[%clk 0:01:17]} 20. Qxd5 {[%clk 0:00:46]}  Bxd5 {[%clk 0:01:18]} 21. Rxd5 {[%clk 0:00:47]}  Nc6 {[%clk 0:01:09]} 22. c3 {[%clk 0:00:45]}  e6 {[%clk 0:00:58]} 23. Rd6 {[%clk 0:00:44]}  Ke7 {[%clk 0:00:58]} 24. Bc4 {[%clk 0:00:41]}  Nd8 {[%clk 0:00:50]} 25. Bxe6 {[%clk 0:00:37]}  Nxe6 {[%clk 0:00:42]} 26. Re1 {[%clk 0:00:37]}  Rhe8 {[%clk 0:00:37]} 27. Rexe6+ {[%clk 0:00:27]}  Kf7 {[%clk 0:00:37]} 28. Rxf6+ {[%clk 0:00:27]}  Kg7 {[%clk 0:00:37]} 29. Rfe6 {[%clk 0:00:28]}  Rf8 {[%clk 0:00:36]} 30. Re7+ {[%clk 0:00:27]}  Kh6 {[%clk 0:00:37]} 31. Rxb7 {[%clk 0:00:25]}  Rf2 {[%clk 0:00:33]} 32. Rd2 {[%clk 0:00:25]}  Rf1+ {[%clk 0:00:31]} 33. Kc2 {[%clk 0:00:25]}  Re8 {[%clk 0:00:29]} 34. c6 {[%clk 0:00:25]}  Rf6 {[%clk 0:00:27]} 35. b5 {[%clk 0:00:25]}  axb5 {[%clk 0:00:26]} 36. axb5 {[%clk 0:00:25]}  Rf5 {[%clk 0:00:26]} 37. c7 {[%clk 0:00:24]}  Rc5 {[%clk 0:00:26]} 38. Rd8 {[%clk 0:00:22]}  Re3 {[%clk 0:00:20]} 39. Rd3 {[%clk 0:00:16]}  Re2+ {[%clk 0:00:18]} 40. Kb3 {[%clk 0:00:16]}  Re4 {[%clk 0:00:16]} 41. Rd4 {[%clk 0:00:10]}  Re3 {[%clk 0:00:13]} 42. Rc4 {[%clk 0:00:11]} 1-0


[Site "https://www.chess.com"]

[Event "Titled Tuesday Blitz May 23 Late 2023"]
[White "Balla, Tamas-Kristof"]
[Black "Celestino, Rafael Teixeira"]
[WhiteFideId "1208497"]
[BlackFideId "2108925"]
[WhiteElo "2334"]
[BlackElo "2367"]
[Result "1/2-1/2"]
[Round "10"]
[TimeControl "180+2"]
[Date "2023.05.23"]
[WhiteClock "0:00:36"]
[BlackClock "0:00:25"]

1. f4 {[%clk 0:02:59]}  e5 {[%clk 0:02:59]} 2. fxe5 {[%clk 0:02:55]}  d6 {[%clk 0:02:59]} 3. exd6 {[%clk 0:02:55]}  Bxd6 {[%clk 0:03:00]} 4. Nf3 {[%clk 0:02:55]}  Nc6 {[%clk 0:03:00]} 5. g3 {[%clk 0:02:54]}  Nf6 {[%clk 0:03:00]} 6. d3 {[%clk 0:02:51]}  O-O {[%clk 0:03:00]} 7. e4 {[%clk 0:02:50]}  Re8 {[%clk 0:03:00]} 8. Bg2 {[%clk 0:02:50]}  Bg4 {[%clk 0:03:01]} 9. O-O {[%clk 0:02:49]}  Bc5+ {[%clk 0:03:01]} 10. Kh1 {[%clk 0:02:48]}  Nd4 {[%clk 0:03:01]} 11. Nbd2 {[%clk 0:02:45]}  Qd7 {[%clk 0:03:01]} 12. c3 {[%clk 0:02:43]}  Nxf3 {[%clk 0:03:00]} 13. Nxf3 {[%clk 0:02:43]}  Rad8 {[%clk 0:02:58]} 14. Bg5 {[%clk 0:02:02]}  Qxd3 {[%clk 0:02:40]} 15. Bxf6 {[%clk 0:02:01]}  gxf6 {[%clk 0:02:37]} 16. Qxd3 {[%clk 0:02:01]}  Rxd3 {[%clk 0:02:38]} 17. Ne1 {[%clk 0:01:49]}  Rd2 {[%clk 0:02:32]} 18. Rxf6 {[%clk 0:01:48]}  Rxb2 {[%clk 0:02:24]} 19. Nd3 {[%clk 0:01:47]}  Rb5 {[%clk 0:02:01]} 20. e5 {[%clk 0:01:22]}  Be7 {[%clk 0:01:44]} 21. Rf4 {[%clk 0:01:20]}  Be2 {[%clk 0:01:40]} 22. Nc1 {[%clk 0:01:07]}  Bh5 {[%clk 0:01:30]} 23. Nb3 {[%clk 0:01:00]}  c6 {[%clk 0:01:20]} 24. Re1 {[%clk 0:00:53]}  Bd8 {[%clk 0:01:01]} 25. Rfe4 {[%clk 0:00:50]}  Bg6 {[%clk 0:01:01]} 26. R4e2 {[%clk 0:00:49]}  Bh5 {[%clk 0:00:59]} 27. Re4 {[%clk 0:00:49]}  Bg6 {[%clk 0:00:33]} 28. R4e2 {[%clk 0:00:48]}  Bh5 {[%clk 0:00:25]} 29. Re4 {[%clk 0:00:36]} 1/2-1/2


[Site "https://www.chess.com"]

[Event "Titled Tuesday Blitz May 23 Late 2023"]
[White "Santos Flores, Alberto"]
[Black "ThaBarWa"]
[WhiteFideId "3601234"]
[WhiteElo "2235"]
[BlackElo "2340"]
[Result "1-0"]
[Round "10"]
[TimeControl "180+2"]
[Date "2023.05.23"]
[WhiteClock "0:00:40"]
[BlackClock "0:00:05"]

1. e4 {[%clk 0:03:00]}  e6 {[%clk 0:03:00]} 2. d4 {[%clk 0:03:00]}  d5 {[%clk 0:03:01]} 3. Nc3 {[%clk 0:02:58]}  Nf6 {[%clk 0:03:00]} 4. e5 {[%clk 0:02:58]}  Nfd7 {[%clk 0:03:00]} 5. Nce2 {[%clk 0:02:59]}  c5 {[%clk 0:03:00]} 6. c3 {[%clk 0:02:59]}  Nc6 {[%clk 0:03:01]} 7. Nf3 {[%clk 0:02:59]}  Be7 {[%clk 0:02:46]} 8. a3 {[%clk 0:02:58]}  a5 {[%clk 0:02:46]} 9. Nf4 {[%clk 0:02:58]}  g5 {[%clk 0:02:42]} 10. Nh5 {[%clk 0:02:55]}  cxd4 {[%clk 0:02:17]} 11. cxd4 {[%clk 0:02:54]}  Qb6 {[%clk 0:02:17]} 12. h3 {[%clk 0:02:50]}  a4 {[%clk 0:02:13]} 13. Rb1 {[%clk 0:02:45]}  Rg8 {[%clk 0:02:06]} 14. Be3 {[%clk 0:02:43]}  Qb3 {[%clk 0:01:49]} 15. Qxb3 {[%clk 0:02:34]}  axb3 {[%clk 0:01:49]} 16. Bd3 {[%clk 0:02:35]}  Nb6 {[%clk 0:01:09]} 17. g4 {[%clk 0:02:17]}  h6 {[%clk 0:00:49]} 18. Nd2 {[%clk 0:01:55]}  Nc4 {[%clk 0:00:34]} 19. Nxc4 {[%clk 0:01:48]}  dxc4 {[%clk 0:00:35]} 20. Bxc4 {[%clk 0:01:48]}  Na5 {[%clk 0:00:35]} 21. Bb5+ {[%clk 0:01:37]}  Bd7 {[%clk 0:00:35]} 22. Bxd7+ {[%clk 0:01:37]}  Kxd7 {[%clk 0:00:36]} 23. Rc1 {[%clk 0:01:36]}  Rac8 {[%clk 0:00:33]} 24. Ke2 {[%clk 0:01:35]}  Nc4 {[%clk 0:00:31]} 25. Rc3 {[%clk 0:01:24]}  Nxb2 {[%clk 0:00:19]} 26. Rxb3 {[%clk 0:01:23]}  Na4 {[%clk 0:00:20]} 27. Rxb7+ {[%clk 0:01:22]}  Rc7 {[%clk 0:00:20]} 28. Rxc7+ {[%clk 0:01:21]}  Kxc7 {[%clk 0:00:21]} 29. f4 {[%clk 0:01:13]}  Nc3+ {[%clk 0:00:19]} 30. Kd3 {[%clk 0:01:13]}  Nd5 {[%clk 0:00:20]} 31. fxg5 {[%clk 0:01:08]}  Nxe3 {[%clk 0:00:20]} 32. Kxe3 {[%clk 0:01:08]}  Bxg5+ {[%clk 0:00:21]} 33. Ke4 {[%clk 0:01:09]}  Ra8 {[%clk 0:00:19]} 34. Rf1 {[%clk 0:00:55]}  Rxa3 {[%clk 0:00:18]} 35. Rxf7+ {[%clk 0:00:55]}  Kc6 {[%clk 0:00:19]} 36. Nf4 {[%clk 0:00:56]}  Rg3 {[%clk 0:00:07]} 37. Nxe6 {[%clk 0:00:41]}  Re3+ {[%clk 0:00:07]} 38. Kf5 {[%clk 0:00:41]}  Rxh3 {[%clk 0:00:04]} 39. Nxg5 {[%clk 0:00:41]}  hxg5 {[%clk 0:00:04]} 40. Kxg5 {[%clk 0:00:40]}  Rh1 {[%clk 0:00:05]} 1-0


[Site "https://www.chess.com"]

[Event "Titled Tuesday Blitz May 23 Late 2023"]
[White "Goncalves, Davi Sulzbacher"]
[Black "Matute Escobar, Roxanny"]
[WhiteFideId "2154510"]
[BlackFideId "3926028"]
[WhiteElo "2182"]
[BlackElo "1844"]
[Result "1-0"]
[Round "10"]
[TimeControl "180+2"]
[Date "2023.05.23"]
[WhiteClock "0:00:04"]
[BlackClock "0:00:05"]

1. Nf3 {[%clk 0:02:56]}  Nf6 {[%clk 0:02:59]} 2. d4 {[%clk 0:02:56]}  g6 {[%clk 0:03:00]} 3. Bf4 {[%clk 0:02:56]}  Bg7 {[%clk 0:03:00]} 4. e3 {[%clk 0:02:56]}  d6 {[%clk 0:02:58]} 5. Be2 {[%clk 0:02:57]}  O-O {[%clk 0:02:57]} 6. h3 {[%clk 0:02:57]}  c5 {[%clk 0:02:57]} 7. O-O {[%clk 0:02:56]}  cxd4 {[%clk 0:02:57]} 8. exd4 {[%clk 0:02:56]}  Nc6 {[%clk 0:02:58]} 9. c3 {[%clk 0:02:56]}  a6 {[%clk 0:02:44]} 10. Nbd2 {[%clk 0:02:53]}  b5 {[%clk 0:02:44]} 11. a4 {[%clk 0:02:52]}  b4 {[%clk 0:02:42]} 12. Nc4 {[%clk 0:02:45]}  bxc3 {[%clk 0:02:42]} 13. bxc3 {[%clk 0:02:43]}  Nd5 {[%clk 0:02:40]} 14. Bd2 {[%clk 0:02:42]}  e5 {[%clk 0:02:36]} 15. Ne3 {[%clk 0:02:29]}  Nf4 {[%clk 0:02:26]} 16. Bc4 {[%clk 0:02:17]}  e4 {[%clk 0:02:15]} 17. Ne1 {[%clk 0:01:47]}  Qg5 {[%clk 0:01:47]} 18. Kh2 {[%clk 0:01:22]}  Qh4 {[%clk 0:01:30]} 19. Ng4 {[%clk 0:01:11]}  h5 {[%clk 0:00:15]} 20. Bxf4 {[%clk 0:01:09]}  hxg4 {[%clk 0:00:15]} 21. Bxd6 {[%clk 0:01:02]}  gxh3 {[%clk 0:00:15]} 22. g3 {[%clk 0:01:00]}  Qf6 {[%clk 0:00:15]} 23. Bxf8 {[%clk 0:00:56]}  Bxf8 {[%clk 0:00:16]} 24. Rb1 {[%clk 0:00:43]}  Bd6 {[%clk 0:00:16]} 25. Bd5 {[%clk 0:00:25]}  Bd7 {[%clk 0:00:14]} 26. Bxe4 {[%clk 0:00:22]}  Re8 {[%clk 0:00:13]} 27. Qf3 {[%clk 0:00:21]}  Qxf3 {[%clk 0:00:09]} 28. Bxf3 {[%clk 0:00:22]}  Na5 {[%clk 0:00:08]} 29. Nd3 {[%clk 0:00:20]}  Bxa4 {[%clk 0:00:08]} 30. Ra1 {[%clk 0:00:20]}  Bb5 {[%clk 0:00:08]} 31. Nf4 {[%clk 0:00:16]}  Bxf4 {[%clk 0:00:07]} 32. gxf4 {[%clk 0:00:16]}  Nb3 {[%clk 0:00:08]} 33. Ra3 {[%clk 0:00:15]}  Nd2 {[%clk 0:00:09]} 34. Rfa1 {[%clk 0:00:12]}  Nxf3+ {[%clk 0:00:09]} 35. Kxh3 {[%clk 0:00:12]}  Kg7 {[%clk 0:00:09]} 36. Kg3 {[%clk 0:00:13]}  Nd2 {[%clk 0:00:08]} 37. Rxa6 {[%clk 0:00:12]}  Bxa6 {[%clk 0:00:08]} 38. Rxa6 {[%clk 0:00:13]}  Re2 {[%clk 0:00:08]} 39. d5 {[%clk 0:00:11]}  Nf1+ {[%clk 0:00:08]} 40. Kg2 {[%clk 0:00:11]}  Nd2 {[%clk 0:00:07]} 41. d6 {[%clk 0:00:11]}  Nc4 {[%clk 0:00:06]} 42. d7 {[%clk 0:00:11]}  Rd2 {[%clk 0:00:07]} 43. Rc6 {[%clk 0:00:09]}  Na5 {[%clk 0:00:06]} 44. Rc5 {[%clk 0:00:08]}  Nb7 {[%clk 0:00:06]} 45. Rc7 {[%clk 0:00:09]}  Na5 {[%clk 0:00:06]} 46. c4 {[%clk 0:00:09]}  Nb3 {[%clk 0:00:06]} 47. c5 {[%clk 0:00:09]}  Rd5 {[%clk 0:00:06]} 48. c6 {[%clk 0:00:10]}  Na5 {[%clk 0:00:06]} 49. Rc8 {[%clk 0:00:09]}  Nxc6 {[%clk 0:00:06]} 50. Rxc6 {[%clk 0:00:10]}  Rxd7 {[%clk 0:00:07]} 51. Rc4 {[%clk 0:00:10]}  Rd5 {[%clk 0:00:07]} 52. Kg3 {[%clk 0:00:11]}  Kf6 {[%clk 0:00:08]} 53. Kg4 {[%clk 0:00:11]}  Kg7 {[%clk 0:00:07]} 54. Rc6 {[%clk 0:00:11]}  Rf5 {[%clk 0:00:07]} 55. Rd6 {[%clk 0:00:11]}  Rb5 {[%clk 0:00:06]} 56. Rd1 {[%clk 0:00:11]}  Rb4 {[%clk 0:00:06]} 57. Rd5 {[%clk 0:00:10]}  Rb6 {[%clk 0:00:06]} 58. Kg5 {[%clk 0:00:10]}  Rb4 {[%clk 0:00:05]} 59. f3 {[%clk 0:00:08]}  Rb1 {[%clk 0:00:05]} 60. f5 {[%clk 0:00:08]}  Rg1+ {[%clk 0:00:05]} 61. Kf4 {[%clk 0:00:09]}  g5+ {[%clk 0:00:04]} 62. Ke3 {[%clk 0:00:07]}  Kf6 {[%clk 0:00:04]} 63. Kf2 {[%clk 0:00:06]}  Ra1 {[%clk 0:00:04]} 64. Kg3 {[%clk 0:00:06]}  Ra4 {[%clk 0:00:04]} 65. Rb5 {[%clk 0:00:05]}  Rc4 {[%clk 0:00:05]} 66. Rd5 {[%clk 0:00:04]}  Rf4 {[%clk 0:00:05]} 67. Rb5 {[%clk 0:00:04]}  Rxf5 {[%clk 0:00:05]} 68. Rb6+ {[%clk 0:00:05]}  Kg7 {[%clk 0:00:05]} 69. Kg4 {[%clk 0:00:05]}  Rc5 {[%clk 0:00:06]} 70. Rd6 {[%clk 0:00:05]}  f6 {[%clk 0:00:06]} 71. Rb6 {[%clk 0:00:05]}  Kg6 {[%clk 0:00:06]} 72. Kg3 {[%clk 0:00:04]}  Rc4 {[%clk 0:00:06]} 73. Rb8 {[%clk 0:00:04]}  Kf5 {[%clk 0:00:06]} 74. Rb5+ {[%clk 0:00:05]}  Kg6 {[%clk 0:00:07]} 75. Rb8 {[%clk 0:00:05]}  Rc3 {[%clk 0:00:07]} 76. Rb5 {[%clk 0:00:05]}  Rc4 {[%clk 0:00:07]} 77. Rb6 {[%clk 0:00:05]}  Rf4 {[%clk 0:00:07]} 78. Ra6 {[%clk 0:00:04]}  Ra4 {[%clk 0:00:05]} 79. Rxa4 {[%clk 0:00:04]} 1-0


[Site "https://www.chess.com"]

[Event "Titled Tuesday Blitz May 23 Late 2023"]
[White "Tologon tegin, Semetei"]
[Black "KorolDimitriy75"]
[WhiteFideId "13800574"]
[WhiteElo "2247"]
[BlackElo "2397"]
[Result "1/2-1/2"]
[Round "10"]
[TimeControl "180+2"]
[Date "2023.05.23"]
[WhiteClock "0:00:34"]
[BlackClock "0:00:03"]

1. d4 {[%clk 0:02:53]}  Nf6 {[%clk 0:02:59]} 2. Nc3 {[%clk 0:02:54]}  d5 {[%clk 0:02:58]} 3. Bf4 {[%clk 0:02:53]}  g6 {[%clk 0:02:57]} 4. Qd2 {[%clk 0:02:48]}  Bg7 {[%clk 0:02:57]} 5. Bh6 {[%clk 0:02:46]}  O-O {[%clk 0:02:57]} 6. O-O-O {[%clk 0:02:44]}  c5 {[%clk 0:02:55]} 7. Bxg7 {[%clk 0:02:43]}  Kxg7 {[%clk 0:02:54]} 8. dxc5 {[%clk 0:02:43]}  Qa5 {[%clk 0:02:53]} 9. a3 {[%clk 0:02:40]}  Qxc5 {[%clk 0:02:50]} 10. e3 {[%clk 0:02:38]}  Nc6 {[%clk 0:02:48]} 11. Nf3 {[%clk 0:02:36]}  e5 {[%clk 0:02:35]} 12. Be2 {[%clk 0:02:33]}  Rd8 {[%clk 0:02:29]} 13. Kb1 {[%clk 0:02:29]}  Bf5 {[%clk 0:02:20]} 14. Nh4 {[%clk 0:02:26]}  Be6 {[%clk 0:02:20]} 15. f4 {[%clk 0:02:24]}  exf4 {[%clk 0:02:00]} 16. exf4 {[%clk 0:02:23]}  d4 {[%clk 0:01:59]} 17. Na2 {[%clk 0:02:23]}  Ne4 {[%clk 0:01:45]} 18. Qe1 {[%clk 0:02:21]}  d3 {[%clk 0:00:40]} 19. Bxd3 {[%clk 0:02:14]}  Nf2 {[%clk 0:00:39]} 20. Nc3 {[%clk 0:02:08]}  Nxh1 {[%clk 0:00:37]} 21. Qxh1 {[%clk 0:02:08]}  Rac8 {[%clk 0:00:24]} 22. f5 {[%clk 0:02:04]}  Bc4 {[%clk 0:00:22]} 23. Qf1 {[%clk 0:02:00]}  Bxd3 {[%clk 0:00:21]} 24. cxd3 {[%clk 0:01:59]}  Nd4 {[%clk 0:00:20]} 25. f6+ {[%clk 0:01:58]}  Kh8 {[%clk 0:00:19]} 26. Qf4 {[%clk 0:01:56]}  Qb6 {[%clk 0:00:19]} 27. Qh6 {[%clk 0:01:54]}  Rg8 {[%clk 0:00:17]} 28. Nf3 {[%clk 0:01:46]}  Nf5 {[%clk 0:00:17]} 29. Qh3 {[%clk 0:01:39]}  Rxc3 {[%clk 0:00:14]} 30. Ng5 {[%clk 0:01:39]}  h5 {[%clk 0:00:12]} 31. g4 {[%clk 0:01:33]}  Rb3 {[%clk 0:00:05]} 32. gxh5 {[%clk 0:01:25]}  Rxb2+ {[%clk 0:00:05]} 33. Ka1 {[%clk 0:01:26]}  Nh6 {[%clk 0:00:04]} 34. Nxf7+ {[%clk 0:01:23]}  Kh7 {[%clk 0:00:04]} 35. Ng5+ {[%clk 0:01:22]}  Kh8 {[%clk 0:00:04]} 36. f7 {[%clk 0:00:56]}  Qb3 {[%clk 0:00:02]} 37. fxg8=Q+ {[%clk 0:00:53]}  Kxg8 {[%clk 0:00:03]} 38. Qe6+ {[%clk 0:00:51]}  Kg7 {[%clk 0:00:03]} 39. Qe5+ {[%clk 0:00:47]}  Kg8 {[%clk 0:00:02]} 40. Qxb2 {[%clk 0:00:40]}  Qxd1+ {[%clk 0:00:02]} 41. Ka2 {[%clk 0:00:41]}  Qxd3 {[%clk 0:00:02]} 42. Qf6 {[%clk 0:00:33]}  Qc2+ {[%clk 0:00:01]} 43. Ka1 {[%clk 0:00:33]}  Qc1+ {[%clk 0:00:01]} 44. Ka2 {[%clk 0:00:33]}  Qc2+ {[%clk 0:00:02]} 45. Ka1 {[%clk 0:00:34]}  Qc1+ {[%clk 0:00:02]} 46. Ka2 {[%clk 0:00:34]}  Qc2+ {[%clk 0:00:03]} 1/2-1/2


[Site "https://www.chess.com"]